fUSD/lending_fUSD_20240412
["ID","MTS","AMOUNT","RATE_DAILY","PERIOD"]
[322333277,1712956293622,-500.0,0.00047123,31]
[322333278,1712956293633,-500.0,0.00047123,31]
[322333279,1712956293644,-806.53,0.00047123,31]
[322333280,1712956293654,-500.0,0.00047123,31]
[322333281,1712956293664,-1501.77,0.00047123,31]
[322333282,1712956293675,-500.0,0.00047123,31]
[322333283,1712956293685,-500.0,0.00047123,31]
[322333284,1712956293695,-315.0,0.00047123,14]
[322333285,1712956293705,-500.0,0.00047123,31]
[322333286,1712956293716,-500.0,0.00047123,31]
[322333287,1712956293726,-500.0,0.00047123,31]
[322333288,1712956293736,-315.0,0.00047123,14]
[322333289,1712956293746,-151.0,0.00047123,14]
[322333290,1712956293756,-500.0,0.00047123,31]
[322333291,1712956293766,-500.0,0.00047123,31]
[322333292,1712956293776,-500.0,0.00047123,31]
[322333293,1712956293785,-500.0,0.00047123,31]
[322333294,1712956293795,-500.0,0.00047123,31]
[322333295,1712956293804,-500.0,0.00047123,31]
[322333296,1712956293813,-500.0,0.00047123,31]
[322333297,1712956293824,-500.0,0.00047123,31]
[322333298,1712956293833,-582.04,0.00047123,31]
[322333299,1712956293842,-500.0,0.00047123,31]
[322333300,1712956293852,-575.83,0.00047123,31]
[322333301,1712956293862,-500.0,0.00047123,31]
[322333302,1712956293872,-500.0,0.00047123,31]
[322333303,1712956293882,-500.0,0.00047123,31]
[322333304,1712956293891,-500.0,0.00047123,31]
[322333305,1712956293901,-500.0,0.00047123,31]
[322333306,1712956293911,-500.0,0.00047123,31]
[322333307,1712956293921,-500.0,0.00047123,31]
[322333308,1712956293930,-500.0,0.00047123,31]
[322333309,1712956293939,-500.0,0.00047123,31]
[322333310,1712956293949,-500.0,0.00047123,31]
[322333311,1712956293958,-511.14702017,0.00047123,31]
[322333312,1712956293968,-188.782729,0.00047123,14]
[322333313,1712956293977,-500.0,0.00047123,31]
[322333314,1712956293987,-500.0,0.00047123,31]
[322333315,1712956293996,-500.0,0.00047123,31]
[322333316,1712956294006,-624.07,0.00047123,31]
[322333317,1712956294015,-583.16,0.00047123,31]
[322333318,1712956294025,-500.0,0.00047123,31]
[322333319,1712956294035,-188.782729,0.00047123,14]
[322333320,1712956294045,-500.0,0.00047123,31]
[322333321,1712956294054,-500.0,0.00047123,31]
[322333322,1712956294067,-500.0,0.00047123,31]
[322333323,1712956294078,-1903.42,0.00047123,31]
[322333324,1712956294087,-500.0,0.00047123,31]
[322333325,1712956294097,-500.0,0.00047123,31]
[322333326,1712956294108,-500.0,0.00047123,31]
[322333327,1712956294118,-500.0,0.00047123,31]
[322333328,1712956294127,-500.0,0.00047123,31]
[322333329,1712956294137,-500.0,0.00047123,31]
[322333330,1712956294146,-500.0,0.00047123,31]
[322333331,1712956294155,-500.0,0.00047123,31]
[322333332,1712956294165,-805.36,0.00047123,31]
[322333333,1712956294174,-500.0,0.00047123,31]
[322333334,1712956294184,-500.0,0.00047123,31]
[322333335,1712956294192,-500.0,0.00047123,31]
[322333336,1712956294202,-500.0,0.00047123,31]
[322333337,1712956294211,-1458.26,0.00047123,31]
[322333338,1712956294221,-500.0,0.00047123,31]
[322333339,1712956294230,-500.0,0.00047123,31]
[322333340,1712956294240,-500.0,0.00047123,31]
[322333341,1712956294249,-500.0,0.00047123,31]
[322333342,1712956294258,-1111.117458,0.00047123,14]
[322333343,1712956294268,-500.0,0.00047123,31]
[322333344,1712956294277,-521.67,0.00047123,31]
[322333345,1712956294287,-500.0,0.00047123,31]
[322333346,1712956294296,-1111.117458,0.00047123,14]
[322333347,1712956294307,-500.0,0.00047123,31]
[322333348,1712956294320,-935.26,0.00047123,31]
[322333349,1712956294330,-1535.17,0.00047123,31]
[322333350,1712956294339,-500.0,0.00047123,31]
[322333351,1712956294348,-541.82,0.00047123,31]
[322333352,1712956294358,-774.55,0.00047123,31]
[322333353,1712956294368,-500.0,0.00047123,31]
[322333354,1712956294377,-500.0,0.00047123,31]
[322333355,1712956294387,-500.0,0.00047123,31]
[322333356,1712956294399,-20341.84,0.00047123,31]
[322333357,1712956294410,-500.0,0.00047123,31]
[322333358,1712956294419,-500.0,0.00047123,31]
[322333359,1712956294429,-500.0,0.00047123,31]
[322333360,1712956294439,-500.0,0.00047123,31]
[322333361,1712956294448,-500.0,0.00047123,31]
[322333362,1712956294459,-1246.74,0.00047123,31]
[322333363,1712956294469,-500.0,0.00047123,31]
[322333364,1712956294478,-500.0,0.00047123,31]
[322333365,1712956294489,-652.08,0.00047123,31]
[322333366,1712956294499,-1608.86,0.00047123,31]
[322333367,1712956294509,-500.0,0.00047123,31]
[322333368,1712956294519,-500.0,0.00047123,31]
[322333369,1712956294529,-469.363151,0.00047123,14]
[322333370,1712956294538,-500.0,0.00047123,31]
[322333371,1712956294548,-874.86,0.00047123,31]
[322333372,1712956294558,-500.0,0.00047123,31]
[322333373,1712956294568,-500.0,0.00047123,31]
[322333374,1712956294578,-174.022076,0.00047123,14]
[322333375,1712956294588,-469.363151,0.00047123,14]
[322333376,1712956294598,-500.0,0.00047123,31]
[322333377,1712956294608,-500.0,0.00047123,31]
[322333378,1712956294618,-500.0,0.00047123,31]
[322333379,1712956294628,-500.0,0.00047123,31]
[322333380,1712956294637,-1419.72,0.00047123,31]
[322333381,1712956294647,-500.0,0.00047123,31]
[322333382,1712956294657,-500.0,0.00047123,31]
[322333383,1712956294666,-500.0,0.00047123,31]
[322333384,1712956294676,-174.022076,0.00047123,14]
[322333385,1712956294687,-3711.37,0.00047123,31]
[322333386,1712956294697,-3646.35,0.00047123,31]
[322333387,1712956294707,-500.0,0.00047123,31]
[322333388,1712956294718,-500.0,0.00047123,31]
[322333389,1712956294728,-500.0,0.00047123,31]
[322333390,1712956294738,-644.18,0.00047123,31]
[322333391,1712956294748,-500.0,0.00047123,31]
[322333392,1712956294760,-500.0,0.00047123,31]
[322333393,1712956294771,-500.0,0.00047123,31]
[322333394,1712956294781,-500.0,0.00047123,31]
[322333395,1712956294792,-500.0,0.00047123,31]
[322333396,1712956294802,-500.0,0.00047123,31]
[322333397,1712956294813,-1230.23,0.00047123,31]
[322333398,1712956294823,-500.0,0.00047123,31]
[322333399,1712956294833,-500.0,0.00047123,31]
[322333400,1712956294843,-529.81,0.00047123,31]
[322333401,1712956294853,-349.71166,0.00047123,14]
[322333402,1712956294864,-500.0,0.00047123,31]
[322333403,1712956294875,-500.0,0.00047123,31]
[322333404,1712956294884,-500.0,0.00047123,31]
[322333405,1712956294895,-500.0,0.00047123,31]
[322333406,1712956294906,-151.0,0.00047123,14]
[322333407,1712956294916,-1773.86,0.00047123,31]
[322333408,1712956294927,-500.0,0.00047123,31]
[322333409,1712956294938,-349.71166,0.00047123,14]
[322333410,1712956294948,-732.33,0.00047123,31]
[322333411,1712956294958,-2118.05,0.00047123,31]
[322333412,1712956294968,-354.803703,0.00047123,14]
[322333413,1712956294977,-645.62,0.00047123,31]
[322333414,1712956294988,-500.0,0.00047123,31]
[322333415,1712956294998,-500.0,0.00047123,31]
[322333416,1712956295008,-151.0,0.00047123,7]
[322333417,1712956295018,-354.803703,0.00047123,14]
[322333418,1712956295028,-546.03,0.00047123,31]
[322333419,1712956295039,-1198.72,0.00047123,31]
[322333420,1712956295050,-500.0,0.00047123,31]
[322333421,1712956295060,-500.0,0.00047123,31]
[322333422,1712956295071,-500.0,0.00047123,31]
[322333423,1712956295081,-500.0,0.00047123,31]
[322333424,1712956295091,-2977.13,0.00047123,31]
[322333425,1712956295102,-5708.25,0.00047123,31]
[322333426,1712956295116,-500.0,0.00047123,31]
[322333427,1712956295126,-746.8,0.00047123,31]
[322333428,1712956295136,-500.0,0.00047123,31]
[322333429,1712956295146,-617.26,0.00047123,31]
[322333430,1712956295157,-664.07,0.00047123,31]
[322333431,1712956295168,-500.0,0.00047123,31]
[322333432,1712956295178,-500.0,0.00047123,31]
[322333433,1712956295189,-500.0,0.00047123,31]
[322333434,1712956295199,-1521.01,0.00047123,31]
[322333435,1712956295210,-500.0,0.00047123,31]
[322333436,1712956295220,-548.85597527,0.00047123,31]
[322333437,1712956295231,-2320.0,0.00047123,31]
[322333438,1712956295241,-500.0,0.00047123,31]
[322333439,1712956295252,-706.82,0.00047123,31]
[322333440,1712956295263,-3679.13,0.00047123,31]
[322333441,1712956295273,-500.0,0.00047123,31]
[322333442,1712956295283,-500.0,0.00047123,31]
[322333443,1712956295294,-500.0,0.00047123,31]
[322333444,1712956295305,-500.0,0.00047123,31]
[322333445,1712956295317,-1058.86,0.00047123,31]
[322333446,1712956295329,-15731.26,0.00047123,31]
[322333447,1712956295340,-521.02,0.00047123,31]
[322333448,1712956295351,-1703.15,0.00047123,31]
[322333449,1712956295363,-455.26464914,0.00047123,31]
[322333450,1712956295374,-500.0,0.00047123,31]
[322333451,1712956295384,-500.0,0.00047123,31]
[322333452,1712956295398,-500.0,0.00047123,31]
[322333453,1712956295409,-1166.54,0.00047123,31]
[322333454,1712956295420,-2094.0,0.00047123,31]
[322333455,1712956295430,-500.0,0.00047123,30]
[322333456,1712956295441,-500.0,0.00047123,31]
[322333457,1712956295451,-151.0,0.00047123,14]
[322333458,1712956295462,-561.72976611,0.00047123,31]
[322333459,1712956295472,-2142.41,0.00047123,31]
[322333460,1712956295483,-985.95,0.00047123,31]
[322333461,1712956295493,-500.0,0.00047123,31]
[322333462,1712956295504,-500.0,0.00047123,31]
[322333463,1712956295515,-500.0,0.00047123,31]
[322333464,1712956295526,-500.0,0.00047123,31]
[322333465,1712956295537,-937.11,0.00047123,31]
[322333466,1712956295547,-298.088299,0.00047123,14]
[322333467,1712956295558,-500.0,0.00047123,31]
[322333468,1712956295569,-500.0,0.00047123,31]
[322333469,1712956295579,-691.8,0.00047123,31]
[322333470,1712956295590,-591.24,0.00047123,31]
[322333471,1712956295601,-2120.81,0.00047123,31]
[322333472,1712956295612,-467.34472512,0.00047123,31]
[322333473,1712956295623,-500.0,0.00047123,31]
[322333474,1712956295634,-500.0,0.00047123,31]
[322333475,1712956295644,-534.15,0.00047123,31]
[322333476,1712956295655,-500.0,0.00047123,31]
[322333477,1712956295666,-512.64,0.00047123,31]
[322333478,1712956295676,-500.0,0.00047123,31]
[322333479,1712956295686,-812.89,0.00047123,31]
[322333480,1712956295697,-500.0,0.00047123,31]
[322333481,1712956295708,-2419.16,0.00047123,31]
[322333482,1712956295719,-4130.71,0.00047123,31]
[322333483,1712956295730,-500.0,0.00047123,31]
[322333484,1712956295741,-151.0,0.00047123,14]
[322333485,1712956295752,-500.0,0.00047123,31]
[322333486,1712956295764,-3070.85,0.00047123,31]
[322333487,1712956295775,-1198.069053,0.00047123,14]
[322333488,1712956295785,-500.0,0.00047123,31]
[322333489,1712956295796,-756.68,0.00047123,31]
[322333490,1712956295807,-1198.069053,0.00047123,14]
[322333491,1712956295817,-501.77,0.00047123,31]
[322333492,1712956295828,-679.55,0.00047123,31]
[322333493,1712956295839,-500.0,0.00047123,31]
[322333494,1712956295850,-500.0,0.00047123,31]
[322333495,1712956295861,-642.02,0.00047123,31]
[322333496,1712956295872,-500.0,0.00047123,31]
[322333497,1712956295882,-500.0,0.00047123,31]
[322333498,1712956295893,-190.6817,0.00047123,14]
[322333499,1712956295904,-1182.46,0.00047123,31]
[322333500,1712956295915,-500.0,0.00047123,31]
[322333501,1712956295926,-8113.01,0.00047123,31]
[322333502,1712956295937,-718.33,0.00047123,31]
[322333503,1712956295950,-906.01,0.00047123,31]
[322333504,1712956295960,-500.0,0.00047123,31]
[322333505,1712956295971,-500.0,0.00047123,31]
[322333506,1712956295982,-151.0,0.00047123,14]
[322333507,1712956295992,-190.6817,0.00047123,14]
[322333508,1712956296003,-500.0,0.00047123,31]
[322333509,1712956296012,-552.54,0.00047123,31]
[322333510,1712956296023,-500.0,0.00047123,31]
[322333511,1712956296033,-500.0,0.00047123,31]
[322333512,1712956296044,-1691.75,0.00047123,31]
[322333513,1712956296054,-796.65,0.00047123,31]
[322333514,1712956296068,-500.0,0.00047123,31]
[322333515,1712956296079,-291.271005,0.00047123,14]
[322333516,1712956296089,-500.0,0.00047123,31]
[322333517,1712956296101,-500.0,0.00047123,31]
[322333518,1712956296112,-291.271005,0.00047123,14]
[322333519,1712956296123,-500.0,0.00047123,31]
[322333520,1712956296134,-151.0,0.00047123,14]
[322333521,1712956296144,-1931.38,0.00047123,31]
[322333522,1712956296157,-1038.17,0.00047123,31]
[322333523,1712956296168,-500.0,0.00047123,31]
[322333524,1712956296178,-1909.8,0.00047123,31]
[322333525,1712956296189,-500.0,0.00047123,31]
[322333526,1712956296200,-500.0,0.00047123,31]
[322333527,1712956296211,-500.0,0.00047123,31]
[322333528,1712956296221,-1375.31,0.00047123,31]
[322333529,1712956296232,-500.0,0.00047123,31]
[322333530,1712956296243,-500.0,0.00047123,31]
[322333531,1712956296483,-500.0,0.00047123,31]
[322333532,1712956296497,-3128.79,0.00047123,31]
[322333533,1712956296507,-276.037624,0.00047123,14]
[322333534,1712956296517,-500.0,0.00047123,31]
[322333535,1712956296526,-2327.1,0.00047123,31]
[322333536,1712956296536,-500.0,0.00047123,31]
[322333537,1712956296547,-18182.37,0.00047123,31]
[322333538,1712956296558,-276.037624,0.00047123,14]
[322333539,1712956296569,-500.0,0.00047123,31]
[322333540,1712956296579,-500.0,0.00047123,31]
[322333541,1712956296589,-365.33422,0.00047123,14]
[322333542,1712956296599,-6035.47,0.00047123,31]
[322333543,1712956296608,-2577.26,0.00047123,31]
[322333544,1712956296619,-500.0,0.00047123,31]
[322333545,1712956296629,-500.0,0.00047123,7]
[322333546,1712956296638,-151.0,0.00047123,14]
[322333547,1712956296648,-4212.38,0.00047123,31]
[322333548,1712956296658,-1143.56,0.00047123,31]
[322333549,1712956296668,-365.33422,0.00047123,14]
[322333550,1712956296678,-500.0,0.00047123,31]
[322333551,1712956296687,-500.0,0.00047123,31]
[322333552,1712956296697,-688.0,0.00047123,31]
[322333553,1712956296706,-709.5,0.00047123,31]
[322333554,1712956296716,-500.0,0.00047123,31]
[322333555,1712956296726,-500.0,0.00047123,2]
[322333556,1712956296737,-500.0,0.00047123,31]
[322333557,1712956296746,-500.0,0.00047123,31]
[322333558,1712956296757,-500.0,0.00047123,31]
[322333559,1712956296767,-1251.78,0.00047123,31]
[322333560,1712956296778,-500.0,0.00047123,31]
[322333561,1712956296789,-1227.56,0.00047123,31]
[322333562,1712956296799,-500.0,0.00047123,31]
[322333563,1712956296811,-500.0,0.00047123,31]
[322333564,1712956296822,-962.14,0.00047123,31]
[322333565,1712956296832,-579.98,0.00047123,31]
[322333566,1712956296842,-526.36,0.00047123,31]
[322333567,1712956296852,-500.0,0.00047123,31]
[322333568,1712956296862,-500.0,0.00047123,31]
[322333569,1712956296872,-500.0,0.00047123,31]
[322333570,1712956296882,-455.47066777,0.00047123,31]
[322333571,1712956296892,-518.56926471,0.00047123,31]
[322333572,1712956296903,-595.87,0.00047123,2]
[322333573,1712956296914,-15043.16,0.00047123,31]
[322333574,1712956296924,-500.0,0.00047123,31]
[322333575,1712956296935,-500.0,0.00047123,31]
[322333576,1712956296945,-3922.55,0.00047123,31]
[322333577,1712956296955,-500.0,0.00047123,31]
[322333578,1712956296965,-1614.08,0.00047123,31]
[322333579,1712956296975,-500.0,0.00047123,31]
[322333580,1712956296984,-500.0,0.00047123,31]
[322333581,1712956296995,-454.28366198,0.00047123,31]
[322333582,1712956297005,-500.0,0.00047123,31]
[322333583,1712956297015,-529.92,0.00047123,31]
[322333584,1712956297025,-500.0,0.00047123,31]
[322333585,1712956297035,-3143.435192,0.00047123,14]
[322333586,1712956297045,-500.0,0.00047123,31]
[322333587,1712956297055,-500.0,0.00047123,31]
[322333588,1712956297067,-5579.77,0.00047123,31]
[322333589,1712956297076,-3143.435192,0.00047123,14]
[322333590,1712956297086,-500.0,0.00047123,31]
[322333591,1712956297096,-500.0,0.00047123,31]
[322333592,1712956297106,-680.34,0.00047123,31]
[322333593,1712956297116,-508.89238929,0.00047123,31]
[322333594,1712956297126,-500.0,0.00047123,31]
[322333595,1712956297136,-224.634369,0.00047123,14]
[322333596,1712956297145,-500.0,0.00047123,31]
[322333597,1712956297156,-500.0,0.00047123,31]
[322333598,1712956297165,-500.0,0.00047123,31]
[322333599,1712956297175,-500.0,0.00047123,31]
[322333600,1712956297185,-509.79301446,0.00047123,31]
[322333601,1712956297194,-500.0,0.00047123,31]
[322333602,1712956297204,-224.634369,0.00047123,14]
[322333603,1712956297215,-500.0,0.00047123,31]
[322333604,1712956297225,-503.80910303,0.00047123,31]
[322333605,1712956297234,-151.0,0.00047123,14]
[322333606,1712956297244,-500.0,0.00047123,31]
[322333607,1712956297254,-500.0,0.00047123,31]
[322333608,1712956297264,-206.720845,0.00047123,14]
[322333609,1712956297273,-2156.38,0.00047123,31]
[322333610,1712956297283,-500.0,0.00047123,31]
[322333611,1712956297292,-500.0,0.00047123,31]
[322333612,1712956297302,-1171.95,0.00047123,31]
[322333613,1712956297313,-151.0,0.00047123,14]
[322333614,1712956297325,-500.0,0.00047123,31]
[322333615,1712956297335,-500.0,0.00047123,31]
[322333616,1712956297345,-500.0,0.00047123,31]
[322333617,1712956297354,-299.802974,0.00047123,2]
[322333618,1712956297366,-818.6,0.00047123,31]
[322333619,1712956297376,-500.0,0.00047123,31]
[322333620,1712956297387,-299.802974,0.00047123,2]
[322333621,1712956297400,-500.0,0.00047123,31]
[322333622,1712956297411,-500.0,0.00047123,31]
[322333623,1712956297420,-1005.81,0.00047123,31]
[322333624,1712956297430,-500.0,0.00047123,31]
[322333625,1712956297440,-2445.94,0.00047123,31]
[322333626,1712956297451,-1566.16,0.00047123,31]
[322333627,1712956297461,-500.0,0.00047123,31]
[322333628,1712956297471,-1512.58,0.00047123,31]
[322333629,1712956297481,-3625.83,0.00047123,31]
[322333630,1712956297491,-500.0,0.00047123,31]
[322333631,1712956297502,-500.0,0.00047123,31]
[322333632,1712956297512,-500.0,0.00047123,31]
[322333633,1712956297522,-500.0,0.00047123,31]
[322333634,1712956297533,-500.0,0.00047123,31]
[322333635,1712956297543,-500.0,0.00047123,31]
[322333636,1712956297552,-542.02,0.00047123,31]
[322333637,1712956297563,-500.0,0.00047123,31]
[322333638,1712956297573,-1559.05,0.00047123,31]
[322333639,1712956297583,-563.415772,0.00047123,14]
[322333640,1712956297593,-500.0,0.00047123,31]
[322333641,1712956297603,-500.0,0.00047123,31]
[322333642,1712956297613,-500.0,0.00047123,31]
[322333643,1712956297623,-1365.13,0.00047123,31]
[322333644,1712956297633,-500.0,0.00047123,31]
[322333645,1712956297643,-500.0,0.00047123,31]
[322333646,1712956297654,-563.415772,0.00047123,14]
[322333647,1712956297665,-1937.56,0.00047123,31]
[322333648,1712956297675,-500.0,0.00047123,31]
[322333649,1712956297684,-500.0,0.00047123,31]
[322333650,1712956297694,-500.0,0.00047123,2]
[322333651,1712956297704,-500.0,0.00047123,31]
[322333652,1712956297714,-553.72,0.00047123,31]
[322333653,1712956297724,-2496.98,0.00047123,31]
[322333654,1712956297734,-500.0,0.00047123,31]
[322333655,1712956297743,-500.0,0.00047123,31]
[322333656,1712956297754,-516.73920095,0.00047123,31]
[322333657,1712956297763,-500.0,0.00047123,31]
[322333658,1712956297773,-1304.68,0.00047123,31]
[322333659,1712956297782,-1261.76,0.00047123,31]
[322333660,1712956297792,-500.0,0.00047123,31]
[322333661,1712956297801,-500.0,0.00047123,31]
[322333662,1712956297811,-500.0,0.00047123,31]
[322333663,1712956297820,-500.0,0.00047123,31]
[322333664,1712956297830,-500.0,0.00047123,31]
[322333665,1712956297841,-1112.77,0.00047123,31]
[322333666,1712956297850,-500.0,0.00047123,31]
[322333667,1712956297860,-307.440756,0.00047123,14]
[322333668,1712956297870,-500.0,0.00047123,31]
[322333669,1712956297879,-500.0,0.00047123,31]
[322333670,1712956297889,-500.0,0.00047123,31]
[322333671,1712956297899,-653.52,0.00047123,31]
[322333672,1712956297908,-500.0,0.00047123,31]
[322333673,1712956297917,-500.0,0.00047123,31]
[322333674,1712956297926,-307.440756,0.00047123,14]
[322333675,1712956297935,-2651.19,0.00047123,31]
[322333676,1712956297945,-500.0,0.00047123,31]
[322333677,1712956297955,-1175.23,0.00047123,31]
[322333678,1712956297964,-500.0,0.00047123,31]
[322333679,1712956297975,-500.0,0.00047123,31]
[322333680,1712956297984,-1934.28,0.00047123,21]
[322333681,1712956297993,-500.0,0.00047123,31]
[322333682,1712956298002,-500.0,0.00047123,31]
[322333683,1712956298012,-500.0,0.00047123,31]
[322333684,1712956298021,-854.38,0.00047123,31]
[322333685,1712956298031,-500.0,0.00047123,31]
[322333686,1712956298041,-1683.6,0.00047123,31]
[322333687,1712956298052,-500.0,0.00047123,31]
[322333688,1712956298062,-500.0,0.00047123,31]
[322333689,1712956298073,-500.0,0.00047123,31]
[322333690,1712956298082,-829.4,0.00047123,31]
[322333691,1712956298092,-500.0,0.00047123,31]
[322333692,1712956298101,-660.21,0.00047195,30]
[322333693,1712956298112,-264.01386,0.00047288,30]
[322333694,1712956298122,-152.0,0.00047333,6]
[322333695,1712956298132,-151.0,0.00047365,14]
[322333696,1712956298141,-171.05791,0.00047365,14]
[322333697,1712956298151,-171.05791,0.00047365,14]
[322333698,1712956298161,-322.51146,0.00047365,14]
[322333699,1712956298171,-322.51146,0.00047365,14]
[322333700,1712956298181,-151.0,0.00047365,14]
[322333701,1712956298190,-264.243738,0.00047365,14]
[322333702,1712956298200,-151.0,0.00047365,14]
[322333703,1712956298209,-264.243738,0.00047365,14]
[322333704,1712956298219,-151.0,0.00047365,14]
[322333705,1712956298240,-227.430856,0.00047365,14]
[322333706,1712956298249,-151.0,0.00047365,14]
[322333707,1712956298260,-151.0,0.00047365,14]
[322333708,1712956298269,-222.084435,0.00047365,14]
[322333709,1712956298279,-214.738807,0.00047365,14]
[322333710,1712956298288,-222.084435,0.00047365,14]
[322333711,1712956298299,-214.738807,0.00047365,14]
[322333712,1712956298310,-151.0,0.00047365,14]
[322333713,1712956298322,-401.340129,0.00047365,14]
[322333714,1712956298332,-496.627602,0.00047365,14]
[322333715,1712956298341,-401.340129,0.00047365,14]
[322333716,1712956298350,-496.627602,0.00047365,14]
[322333717,1712956298361,-151.0,0.00047365,14]
[322333718,1712956298371,-151.0,0.00047365,14]
[322333719,1712956298381,-900.567219,0.00047365,14]
[322333720,1712956298392,-900.567219,0.00047365,14]
[322333721,1712956298401,-151.0,0.00047365,14]
[322333722,1712956298411,-336.527194,0.00047365,14]
[322333723,1712956298420,-336.527194,0.00047365,14]
[322333724,1712956298429,-151.0,0.00047365,14]
[322333725,1712956298439,-151.0,0.00047365,14]
[322333726,1712956298448,-189.299703,0.00047365,14]
[322333727,1712956298458,-189.299703,0.00047365,14]
[322333728,1712956298468,-315.0,0.00047365,14]
[322333729,1712956298477,-315.0,0.00047365,14]
[322333730,1712956298488,-151.0,0.00047365,14]
[322333731,1712956298497,-188.782729,0.00047365,14]
[322333732,1712956298508,-188.782729,0.00047365,14]
[322333733,1712956298517,-1111.117458,0.00047365,14]
[322333734,1712956298527,-1111.117458,0.00047365,14]
[322333735,1712956298537,-469.363151,0.00047365,14]
[322333736,1712956298546,-469.363151,0.00047365,14]
[322333737,1712956298556,-174.022076,0.00047365,14]
[322333738,1712956298568,-174.022076,0.00047365,14]
[322333739,1712956298578,-349.71166,0.00047365,14]
[322333740,1712956298588,-151.0,0.00047365,14]
[322333741,1712956298598,-349.71166,0.00047365,14]
[322333742,1712956298608,-354.803703,0.00047365,14]
[322333743,1712956298618,-212.146406,0.00047365,7]
[322333744,1712956298629,-354.803703,0.00047365,14]
[322333745,1712956298640,-503.98582876,0.00047397,31]
[322333746,1712956298650,-500.0,0.00047397,31]
[322333747,1712956298660,-264.24684634,0.00047397,31]
[322333748,1712956298671,-500.0,0.00047397,31]
[322333749,1712956298682,-500.0,0.00047397,31]
[322333750,1712956298693,-500.0,0.00047397,31]
[322333751,1712956298703,-500.0,0.00047397,31]
[322333752,1712956298713,-500.0,0.00047397,31]
[322333753,1712956298723,-500.0,0.00047397,31]
[322333754,1712956298733,-175.0,0.00047397,31]
[322333755,1712956298742,-598.1560938,0.00047397,31]
[322333756,1712956298752,-500.0,0.00047397,31]
[322333757,1712956298761,-500.0,0.00047397,31]
[322333758,1712956298770,-387.95612828,0.00047397,31]
[322333759,1712956298779,-523.44208844,0.00047397,31]
[322333760,1712956298789,-500.0,0.00047397,31]
[322333761,1712956298798,-500.0,0.00047397,31]
[322333762,1712956298810,-500.0,0.00047397,31]
[322333763,1712956298821,-500.0,0.00047397,31]
[322333764,1712956298830,-374.46137945,0.00047397,31]
[322333765,1712956298839,-495.57130229,0.00047397,31]
[322333766,1712956298848,-500.0,0.00047397,31]
[322333767,1712956298858,-300.56774659,0.00047397,31]
[322333768,1712956298868,-500.0,0.00047397,31]
[322333769,1712956298877,-500.0,0.00047397,31]
[322333770,1712956298989,-640.05234337,0.00047397,31]
[322333771,1712956298998,-500.0,0.00047397,31]
[322333772,1712956299008,-500.0,0.00047397,31]
[322333773,1712956299017,-506.29173567,0.00047397,31]
[322333774,1712956299026,-500.0,0.00047397,31]
[322333775,1712956299035,-500.0,0.00047397,31]
[322333776,1712956299043,-500.0,0.00047397,31]